Cogmind - Beta 16 --- EXPLORER MODE // 2025.12.09 @ 11:53:40 Player: K.K.Y. Result: Destroyed by IQ-MYC(R) with Subdweller Shrapnel Launcher Performance ------------- Evolutions (0) 0 Regions Visited (3) 600 Robots Destroyed (23) 115 Value Destroyed (636) 636 Prototype IDs (12) 240 Alien Tech Used (0) 0 Bonus (30) 30 TOTAL SCORE: 1621 Bonus ------- Follower Combat Kills 30 Cogmind --------- Core Integrity 0/250 Matter 197/300 Energy 160/160 System Corruption 0% Temperature Cool (0) Movement Treading (360) Ox2 Location -10/Subcaves Parts ------- > --- POWER (1) -------- Light Nuclear Core > --- PROPULSION (2) --- Spiked Treads Spiked Treads > --- UTILITY (3) ------ Huge Storage Unit Improved Terrain Scanner ECM Suite > --- WEAPON (2) ------- Medium Laser Light Cannon > --- INVENTORY (25) --- Ion Engine Improved Ion Engine Arachnoskeleton ECM Suite ECM Suite Medium Laser Multitool Peak State ------------ > --- POWER ------------ Light Nuclear Core > --- PROPULSION ------- Spiked Treads Spiked Treads > --- UTILITY ---------- Huge Storage Unit Improved Terrain Scanner ECM Suite > --- WEAPON ----------- Medium Laser Light Cannon > --- INVENTORY -------- Ion Engine Improved Ion Engine Arachnoskeleton ECM Suite ECM Suite Medium Laser Multitool [Rating: 16] Favorites ----------- Power Light Nuclear Core Engine Ion Engine Power Core Light Nuclear Core Propulsion Spiked Treads Treads Spiked Treads Leg Aluminum Leg Wheel Wheel Hover Unit Hover Unit Utility ECM Suite Device ECM Suite Storage Huge Storage Unit Weapon Medium Laser Energy Gun Medium Laser Ballistic Cannon Light Cannon Special Weapon Mining Laser Build | -11 -10 -10 -10 ------- Run | Yrd Mat Min Sub Slots Evolved 1 | . 1 . . Power . | . . . . Propulsion . | . . . . Utility 1 | . 1 . . Weapon . | . . . . Parts Attached 29 | 9 12 . 8 Power 2 | 1 . . 1 Engine 1 | 1 . . . Core 1 | . . . 1 Reactor . | . . . . Propulsion 13 | 4 5 . 4 Treads 2 | . . . 2 Leg 4 | 2 . . 2 Wheel 5 | 2 3 . . Hover 2 | . 2 . . Flight . | . . . . Utility 6 | 2 3 . 1 Device 5 | 2 3 . . Storage 1 | . . . 1 Processor . | . . . . Hackware . | . . . . Protection . | . . . . Artifact . | . . . . Weapon 8 | 2 4 . 2 Energy Gun 4 | 2 2 . . Energy Cannon . | . . . . Ballistic Gun . | . . . . Ballistic Cannon 2 | . 2 . . Launcher . | . . . . Special Weapon 2 | . . . 2 Impact Weapon . | . . . . Slashing Weapon . | . . . . Piercing Weapon . | . . . . Special Melee Weapon . | . . . . Unidentified Prototypes . | . . . . Parts Lost 7 | . 2 . 5 Power 1 | . . . 1 Propulsion 4 | . 2 . 2 Utility 1 | . . . 1 Weapon 1 | . . . 1 Highest Loss Streak 2 | . 2 . 2 To Critical Strikes . | . . . . Average Backups 5 | 1 3 5 6 Power 1 | . . 1 1 Propulsion . | . . . . Utility 1 | . . 2 1 Weapon 1 | . 2 2 1 Tool/Special . | . . . . Unused Backups 5 | . 1 . 4 Power 2 | . . . 2 Propulsion 1 | . . . 1 Utility 2 | . 1 . 1 Weapon . | . . . . Tool/Special . | . . . . Average Slot Usage (%) 90 | . 94 100 87 Engine 3 | . 11 12 . Core 7 | . . . 10 Treads 10 | . . . 13 Wheel 6 | . 19 25 . Device 29 | . 37 37 26 Storage 7 | . . . 10 Energy Gun 14 | . 20 25 12 Ballistic Cannon 7 | . 1 . 10 Peak Build Rating 16 | 7 10 10 16 Average Rating 12 | 5 9 10 13 On Entrance 6 | . 7 10 10 Avg Prop Armor Cover (%) . | . . . . Naked Turns . | . . . . Heaviest Build 93 | 11 15 14 93 Greatest Support 40 | 20 32 20 40 Greatest Overweight (x) 30 | 3 4 . 30 Average Overweight (x) 1 | . . . 2 Largest Inventory Capacity 25 | 5 5 5 25 Average Capacity 17 | 5 5 5 21 Most Carried 10 | 4 5 5 10 Average Carried 6 | 1 3 5 7 Final Capacity 25 | 5 5 5 25 Final Carried 9 | 2 5 5 9 Class Distribution -------------------- 100% | Hacker-Mutant Dominant Class ---------------- Hacker-Mutant | -10/Materials Hacker-Mutant | -10/Mines Hacker-Mutant | -10/Subcaves Resources | -11 -10 -10 -10 ----------- Run | Yrd Mat Min Sub Matter Collected 792 | 290 276 . 226 Remotely . | . . . . Salvage Created 1012 | 149 583 . 280 Parts 46 | 11 20 . 15 Haulers Intercepted 2 | . 2 . . Recyclers Shooed . | . . . . Parts Field Recycled . | . . . . Retrieved Matter . | . . . . Parts Self-Destructed . | . . . . Prevented . | . . . . Parts Restored . | . . . . Kills | -11 -10 -10 -10 ------- Run | Yrd Mat Min Sub Combat Hostiles Destroyed 14 | . 6 . 8 Guns 9 | . 3 . 6 Cannons 4 | . 2 . 2 Classes Destroyed 7 | 2 3 . 2 Tunneler 2 | 2 . . . Hauler 2 | . 2 . . Recycler 3 | 1 2 . . Watcher 2 | . 2 . . Grunt 6 | . 6 . . Sentry 1 | . . . 1 Subdweller 7 | . . . 7 Best Kill Streak 3 | 3 3 . 2 Combat Bots Only 2 | . 2 . 2 Max Kills in Single Turn 1 | 1 1 . 1 Gunslinging . | . . . . Exploded . | . . . . Melee . | . . . . Uniques/NPCs Destroyed . | . . . . Combat | -11 -10 -10 -10 -------- Run | Yrd Mat Min Sub Hostile Shots Fired 87 | . 33 . 54 Missed 18 | . 5 . 13 Hits 69 | . 28 . 41 Projectile 69 | . 28 . 41 AOE 1 | . . . 1 Critical Strikes 5 | . 1 . 4 Damage Taken 803 | . 266 2 535 Core 263 | . 81 . 182 Absorbed by Shields . | . . . . Ignored by Resistances 479 | . 162 . 317 Core Remaining (%) 100 | 100 . . . Volleys Fired 134 | 4 51 . 79 Largest 2 | 2 2 . 2 Hottest 150 | 80 100 . 150 Shots Fired 253 | 8 90 . 155 Gun 177 | 8 81 . 88 Cannon 70 | . 9 . 61 Launcher . | . . . . Special 6 | . . . 6 Kinetic 70 | . 9 . 61 Thermal 164 | 4 66 . 94 Explosive . | . . . . Electromagnetic 19 | 4 15 . . Robot Hit Streak 49 | 3 15 . 49 Robot Miss Streak 2 | 1 2 . . Penetration Max . | . . . . Secondary Targets 2 | . 1 . 1 Max Gunslinging Chain 1 | . 1 . 1 Shots Hit Robots 130 | 6 76 . 48 Core Hits 40 | 4 21 . 15 Critical Kills . | . . . . Critical Parts Destroyed . | . . . . Critical Strikes 9 | . 3 . 6 Burn 8 | . 2 . 6 Corrupt 1 | . 1 . . Melee Attacks . | . . . . Impact . | . . . . Slashing . | . . . . Piercing . | . . . . Sneak Attacks . | . . . . Combat Hostiles . | . . . . Follow-up Attacks . | . . . . Damage Inflicted 1736 | 70 985 5 676 Guns 1350 | 70 842 . 438 Cannons 333 | . 143 . 190 Explosions . | . . . . Melee . | . . . . Ramming 5 | . . 5 . Kinetic 333 | . 143 . 190 Thermal 1174 | 43 645 . 486 Explosive . | . . . . Electromagnetic 224 | 27 197 . . Impact . | . . . . Slashing . | . . . . Piercing . | . . . . Highest Corruption . | . . . . Average Corruption . | . . . . Corruption Purged . | . . . . Corruption Blocked . | . . . . Overload Shots . | . . . . Overflow Damage . | . . . . Projectiles . | . . . . Explosions . | . . . . Melee . | . . . . Knockbacks 5 | . 3 . 2 Impact . | . . . . Kinetic 5 | . 3 . 2 Secondary . | . . . . Self-Inflicted Damage 2 | . . 2 . Shots . | . . . . Rammed 1 | . . 1 . Targets Rammed 1 | . . 1 . Kicked . | . . . . Crushed . | . . . . Highest Temperature 240 | 36 240 . 15 Average Temperature 63 | 16 67 . 9 Received Heat Transfer 360 | . 240 . 120 Effects 1 | . 1 . . Interference 1 | . 1 . . Siege Activations . | . . . . Martial Activations . | . . . . Shielding Activations . | . . . . Robots Disrupted . | . . . . Combat Hostiles . | . . . . Robots Corrupted 1 | . 1 . . Combat Hostiles . | . . . . Parts Fried . | . . . . Impact Corruptions . | . . . . Robots Melted 2 | . 2 . . Combat Hostiles 1 | . 1 . . Parts Melted 11 | . 7 . 4 Heat Transferred 3798 | 100 1859 . 1839 Parts Sabotaged . | . . . . Parts Stolen . | . . . . Parts Stripped . | . . . . Power Chain Reactions . | . . . . Alert | -11 -10 -10 -10 ------- Run | Yrd Mat Min Sub Maximum Alert Level . | . . . . Low Security (%) 100 | 100 100 100 . Level 1 . | . . . . Level 2 . | . . . . Level 3 . | . . . . Level 4 . | . . . . Level 5 . | . . . . High Security . | . . . . Max Security . | . . . . Peak Influence 50 | 10 50 . . Initial . | . . . . Average 2 | . 4 . . Influence Increases 226 | 15 191 . 20 Destroy 0b10 Robot/C 140 | . 120 . 20 Destroy 0b10 Robot/NC 45 | 15 30 . . Destroy Leader 38 | . 38 . . Successful Hack 3 | . 3 . . Influence Decreases 226 | 15 191 . 20 Time Decay 226 | 15 191 . 20 Squads Dispatched . | . . . . Investigation . | . . . . Extermination . | . . . . Reinforcement . | . . . . Assault . | . . . . Garrison . | . . . . Intercept . | . . . . Searches Triggered . | . . . . Construction Impeded . | . . . . Haulers Reinforced . | . . . . Active Scanning Responses . | . . . . Cargo Convoy Interrupts . | . . . . Stealth | -11 -10 -10 -10 --------- Run | Yrd Mat Min Sub Distress Signals . | . . . . Communications Jammed . | . . . . Distress Signals . | . . . . Times Spotted 23 | . 13 . 10 Peak Tracking Total 3 | . 2 . 3 Tactical Retreats 1 | . 1 . . ECM-based Alert Blocks 1 | . 1 . . Traps | -11 -10 -10 -10 ------- Run | Yrd Mat Min Sub Traps Triggered 6 | . 6 . . Indirectly . | . . . . Trap Hack Attempts . | . . . . Triggered . | . . . . Disarmed . | . . . . Reprogrammed . | . . . . Reused . | . . . . Traps Extracted . | . . . . Installed 1 | . . . 1 Triggered . | . . . . Machines | -11 -10 -10 -10 ---------- Run | Yrd Mat Min Sub Machines Disabled 1 | . . . 1 Max in Single Turn 1 | . . . 1 Machines Repaired . | . . . . Machines Dismantled . | . . . . Machines Sabotaged . | . . . . Overloaded Fab Kills . | . . . . Hacking | -11 -10 -10 -10 --------- Run | Yrd Mat Min Sub Machines Accessed 10 | . 8 . 2 Terminals 6 | . 6 . . Fabricators . | . . . . Repair Stations . | . . . . Recycling Units 2 | . 2 . . Scanalyzers . | . . . . Garrison Access . | . . . . Total Hacks 17 | . 11 . 6 Successful 14 | . 8 . 6 Failed 3 | . 3 . . Catastrophic . | . . . . Database Lockouts . | . . . . Manual 9 | . 9 . . Terminals 9 | . 9 . . Fabricators . | . . . . Repair Stations . | . . . . Recycling Units 2 | . 2 . . Scanalyzers . | . . . . Garrison Access . | . . . . Terminal Hacks 6 | . . . 6 Record 5 | . . . 5 Proto ID Catalog 1 | . . . 1 Fabricator Hacks . | . . . . Repair Station Hacks . | . . . . Recycling Unit Hacks 2 | . 2 . . Retrieve Components 2 | . 2 . . Scanalyzer . | . . . . Garrison Access Hacks . | . . . . Unauthorized Hacks 6 | . 6 . . Terminals 6 | . 6 . . Botnet 6 | . 6 . . Fabricators . | . . . . Repair Stations . | . . . . Recycling Units . | . . . . Scanalyzers . | . . . . Garrison Access . | . . . . Data Cores Recovered . | . . . . Used . | . . . . Hacking Detections 3 | . 3 . . Full Trace Events . | . . . . Feedback Events . | . . . . Feedback Blocked . | . . . . Robot Schematics Acquired . | . . . . Robots Built . | . . . . Authchips . | . . . . Time . | . . . . Total Robot Build Rating . | . . . . Part Schematics Acquired . | . . . . Parts Built . | . . . . Authchips . | . . . . Time . | . . . . Total Part Build Rating . | . . . . Part Studies Acquired . | . . . . Parts Repaired . | . . . . Time . | . . . . Parts Recycled . | . . . . Recycled Matter . | . . . . Retrieved Matter . | . . . . Retrieved Components 11 | . 11 . . Parts Scanalyzed . | . . . . Part Schematics Acquired . | . . . . Parts Damaged . | . . . . Bothacking | -11 -10 -10 -10 ------------ Run | Yrd Mat Min Sub Used RIF Installer . | . . . . Robots Hacked . | . . . . Non-combat . | . . . . Combat . | . . . . Robot Hacks Applied . | . . . . Relay Couplers Released . | . . . . Fabnet Peak Effective % . | . . . . Robots Rewired . | . . . . Allies Hacked . | . . . . Hacks Repelled . | . . . . Allies | -11 -10 -10 -10 -------- Run | Yrd Mat Min Sub Total Allies 3 | . . 3 . Largest Group 3 | . . 3 3 Highest-Rated Group 40 | . . 40 40 Highest-Rated Ally 16 | . . 16 16 Total Orders . | . . . . Ally Attacks 18 | . . . 18 Total Damage 212 | . . . 212 Kills 2 | . . . 2 Allies Corrupted . | . . . . Allies Melted . | . . . . Intel | -11 -10 -10 -10 ------- Run | Yrd Mat Min Sub Active Infowar (turns) 7160 | 182 1271 512 5195 Terrain 5848 | . 671 . 5177 Seismic 609 | 55 554 . . ECM 2074 | 182 1268 512 112 Robot Analysis Total . | . . . . Derelict Logs Recovered 3 | . . . 3 Drone Launches . | . . . . Drone Recoveries . | . . . . Exploration | -11 -10 -10 -10 ------------- Run | Yrd Mat Min Sub Turns Passed 7184 | 206 1271 512 5195 Spaces Moved 3277 | 136 1158 533 1450 Core 328 | 54 12 . 262 Treads 861 | . . . 861 Legs 59 | 39 . . 20 Wheels 1844 | 43 961 533 307 Hover 185 | . 185 . . Flight . | . . . . Fastest Speed 50 | 50 56 80 80 Average Speed 193 | 100 78 80 335 Slowest Speed 1550 | 200 250 80 1550 Overloaded Moves . | . . . . Propulsion Burnouts . | . . . . Robots Hopped . | . . . . Potential Cave-ins . | . . . . Cave-ins Triggered . | . . . . Exploration Rate (%) 71 | 4 98 99 84 Regions Visited 3 Branch Regions 2 Pre-discovered Areas 1 | . . . 1 Known Exits Taken 3 | 1 1 1 . Unknown Exits Taken . | . . . . Scrap Searched 4 | . . . 4 Spaces Dug . | . . . . Terrain Destroyed . | . . . . Melee . | . . . . Projectile . | . . . . AOE . | . . . . Terrain Rammed . | . . . . Walls Destroyed . | . . . . Machines Disabled . | . . . . Actions | -11 -10 -10 -10 --------- Run | Yrd Mat Min Sub Total 3869 | 199 1431 618 1621 Wait 368 | 36 176 85 71 Move 3274 | 135 1157 532 1450 Hop . | . . . . Pick Up 26 | 11 8 . 7 Fast Attach 20 | . 18 . 2 Attach 16 | 9 2 . 5 Detach 6 | 2 2 . 2 Swap 6 | . 4 . 2 Drop 17 | 2 13 . 2 Fire 134 | 4 51 . 79 Melee . | . . . . Ram 1 | . . 1 . Kick . | . . . . Crush . | . . . . Escape Stasis . | . . . . Rewire . | . . . . Trap 1 | . . . 1 Miscellaneous . | . . . . Route ------- -11/Scrapyard -10/Materials (discovered 5 exits: *Mat x3 / *Min x2) -10/Mines (discovered 4 exits: *Mat x2 / *Exi / *Sub) -10/Subcaves (discovered 2 exits: *Mat x2) History --------- Turn | Location | Event 6 | -11/Scrapyard | Identified exit to Materials 6 | -11/Scrapyard | Discovered exit to Materials (range 14) 207 | -11/Scrapyard | Entered Materials 207 | -10/Materials | Evolved 1 slot: Utility x1 304 | -10/Materials | Build established: Hacker-Mutant 329 | -10/Materials | Identified exit to Materials 329 | -10/Materials | Discovered exit to Materials (range 9) 944 | -10/Materials | Discovered exit to Materials (range 3) 1007 | -10/Materials | Discovered exit to Materials (range 16) 1067 | -10/Materials | Identified exit to Mines 1067 | -10/Materials | Discovered exit to Mines (range 16) 1255 | -10/Materials | Discovered exit to Mines (range 11) 1478 | -10/Materials | Entered Mines 1531 | -10/Mines | Assisted by bots powering up and referring to "LRC-V3" 1591 | -10/Mines | Deemed a non-threat by the Exiles lab entrance 1591 | -10/Mines | Identified exit to Exiles 1591 | -10/Mines | Discovered exit to Exiles (range 5) 1627 | -10/Mines | Discovered exit to Materials (range 7) 1774 | -10/Mines | Discovered exit to Materials (range 12) 1967 | -10/Mines | Identified exit to Subcaves 1967 | -10/Mines | Discovered exit to Subcaves (range 5) 1990 | -10/Mines | Entered Subcaves 1990 | -10/Subcaves | Accompanied by 3 allies 1991 | -10/Subcaves | Approached by a straggling Scientist 2043 | -10/Subcaves | Shifting Twisted Machinery released Battle Rifle 2044 | -10/Subcaves | Shifting Twisted Machinery released Flamer 2055 | -10/Subcaves | Learned location of 1 exit from Materials 2074 | -10/Subcaves | Core integrity fell below 50% 2141 | -10/Subcaves | Shifting Twisted Machinery released Scrap Shield 2188 | -10/Subcaves | Shifting Twisted Machinery released Battle Rifle 2206 | -10/Subcaves | Shifting Twisted Machinery released Battle Rifle 2207 | -10/Subcaves | Shifting Twisted Machinery released Piercing Trap 2641 | -10/Subcaves | Visited 4L-MR0's lab 2702 | -10/Subcaves | Core integrity fell below 20% 2773 | -10/Subcaves | Found Arachnoskeleton 3299 | -10/Subcaves | Visited Clippyterm 3316 | -10/Subcaves | Learned location of Extension (-6) 3316 | -10/Subcaves | Learned Research security intel 5000 | -10/Subcaves | Identified exit to Materials 5000 | -10/Subcaves | Discovered exit to Materials (range 12) 5273 | -10/Subcaves | Discovered exit to Materials (range 14) 6397 | -10/Subcaves | A swath of the cavern ceiling suddenly collapsed 6646 | -10/Subcaves | Disturbed a concealed Subdweller 7151 | -10/Subcaves | Learned Materials stockpile data 7183 | -10/Subcaves | Disturbed a concealed Subdweller 7185 | -10/Subcaves | Destroyed by IQ-MYC(R) with Subdweller Shrapnel Launcher Last Messages --------------- Source. 06762_ Searching scrap... 06762_ Found Sub. Laser. 06762_ Found Shrapnel Trap. 06762_ Found 42 Matter. 06766_ Subatomizers dissect the Sub. Laser. 06824_ Subatomizers dissect the Sub. Power Source. 06888_ L6-Q9X(u) builds Twisted Machinery. 06963_ L6-Q9X(u) tweaks Twisted Machinery. 06970_ L6-Q9X(u) builds Twisted Machinery. 07028_ Acquired 21 matter. 07029_ L6-Q9X(u) builds Twisted Machinery. 07032_ L6-Q9X(u) tweaks Twisted Machinery. 07151_ Acquired derelict log, extracted data. Data stored: Materials stockpile data. 07155_ Acquired derelict log, extracted data. Data stored: Storage entrances (x1). 07183_ IQ-MYC(R) angrily emerges from the Twisted Machinery. Map ----- +----------------------------------------------------+ | ?????????????????????#??????????????????? | | ????????????????????????#?##??#?????#???? | | ??????????????????????????#???????????#?? | | ???????????????????????????#???#????????# | | ??????????????????????????#???#?????????# | | ????????????#?????????#?????##???#??????? | | ?????????????????#???????#??????#??#????? | | ?????????????????#??????################# | | ?????????????????????#### ## ## # # | | ????????????????????## # | | ?????????????????#??# """"" # | | ???????????????????### # ## """"" # " | | ????????????????????## ###### """"### "" | | ????????????#?????### ## """"" #"" | | ????????##??????#??## ### %"#""" " | | ????????????????????# #?# ## ### | | ???????????????????## ######### ##?### | | ????????????????#???## #???#"##""#??##? | | ????????????????##### #?? ""?"""#????# | | ?????????????#?## ## #### #### "#????? | | ???????????????# ### # #?# ##????? | | ??????????????## #?# ##?###????#? | | ???????????#??### #?# ## ####??????#? | | ??????????# $?# #?# ##?????##??#?### | | ????????#?#$ <##< ### #???? ##??#??? | | ???????????# R @ ##??? ##?#??? | | ??????????# #$#< ##??# ????###? | | ???#??????????## #?? #????#???#? | | ?????#?????#??# ## #????????#?? | | ?????????????###### #?##??#????? | | ?????????????????## #?????????? | | ??????????????????## # # #????? | | ??????????????????# ###? #???? | | ?????????????????### #???? ????? | | ??????????????????# #???# ?????? | | ??????????????????# #???#? ### ?????? | | ?????????##???????# ##???????#????????? | | ????????????????#?# #??????????#?????? | | ????????#??#??????## #?????????????????? | | ??????#???????????? ???????#?????????? | | ?????????????#????? #??# ????#????????? | | ??????????????????? ?????????????????? | | ?????????????????? ?????????????????? | | ?????????????????? ? ???????????????? | | ?????????????????? ?????????????????? | | ?????????????????? ?????????????????? | | ??????????????#??## ????????????????? | | ??????????????????# ?????????????????? | | ??????????????????? ?????????????????? | | ????????????????????????????????????????? | +----------------------------------------------------+ Best States ------------- Heat Dissipation 25 Energy Generation 14 Energy Capacity 250 Matter Stores 300 Matter Capacity 300 Sight Range 16 Terrain Scan Range 16 Terrain Scan Density 10 ECM Strength 1 Resistance: KI 35 Resistance: TH 35 Resistance: EX 35 Resistance: EM 35 Resistance: I 35 Resistance: S 35 Resistance: P 35 Evasion (%) 53 Recoil Reduction 2 Offensive Hacking 20 Item Schematics ----------------- None Robot Schematics ------------------ None Fabricated ------------ Nothing Repaired ---------- Nothing Studied --------- None Alien Tech Used ----------------- None Achievements -------------- None Challenges ------------ None Game ------ Seed BlastWeaponFirepult Manual? 0 Play Time 00:26:02 Cumulative 179.4 hours Start 2025.12.09 @ 11:32:27 End 2025.12.09 @ 11:53:40 Sessions 1 Manual Loads 0 Difficulty Explorer Special Mode None Game No. 254 Rogue 0 Adventurer 0 Explorer 254 Win Type - Total 0 Types 0/0/0/0/0/0/0/0/0/0 Lore% 70 Gallery% 67 Achievement% 53 Wizard Run 0 Options --------- Layout 1 ASCII 0 Keyboard 0 Movement Mouse Keybinds 0 Fullscreen 1 Font 24/Smallcaps Map View 50x35 Zoom Use 0% Tactical HUD 1 Map Filters NONE Filters NONE Steam 1 RUN: 48441ea1-5df4-4b57-ac67-271bfb57f9f6